Cogmind - Beta 15 @@@ ROGUE MODE // 2025.07.23 @ 01:02:09 Player: shapeshifter Result: Destroyed by D-53 Grenadier with Mini Grenade Launcher Performance ------------- Evolutions (0) 0 Regions Visited (2) 400 Robots Destroyed (10) 50 Value Destroyed (119) 119 Prototype IDs (0) 0 Alien Tech Used (0) 0 Bonus (25) 25 TOTAL SCORE: 594 Bonus ------- Follower Combat Kills 25 Cogmind --------- Core Integrity 0/250 Matter 290/300 Energy 96/100 System Corruption 0% Temperature Cool (0) Movement Rolling (100) Location -10/Mines Parts ------- > --- POWER (1) -------- (None) > --- PROPULSION (2) --- Compact Wheel Compact Wheel > --- UTILITY (2) ------ Small Storage Unit Seismic Detector > --- WEAPON (2) ------- EM Pulse Gun > --- INVENTORY (8) ---- Light Treads Light Treads Compact Wheel High-capacity Storage Unit Mining Laser Peak State ------------ > --- POWER ------------ Ion Engine > --- PROPULSION ------- Light Treads Light Treads > --- UTILITY ---------- Small Storage Unit Seismic Detector > --- WEAPON ----------- Medium Laser Small Laser > --- INVENTORY -------- Light Ion Engine Aluminum Leg Aluminum Leg Compact Wheel Compact Wheel Compact Wheel EM Pulse Gun [Rating: 7] Favorites ----------- Power Ion Engine Engine Ion Engine Propulsion Light Treads Treads Light Treads Wheel Compact Wheel Utility Small Storage Unit Device Seismic Detector Storage Small Storage Unit Weapon Small Laser Energy Gun Small Laser Build | -11 -10 -10 ------- Run | Yrd Mat Min Slots Evolved . | . . . Power . | . . . Propulsion . | . . . Utility . | . . . Weapon . | . . . Parts Attached 11 | 7 . 4 Power 2 | 1 . 1 Engine 2 | 1 . 1 Core . | . . . Reactor . | . . . Propulsion 4 | 2 . 2 Treads 2 | 2 . . Leg . | . . . Wheel 2 | . . 2 Hover . | . . . Flight . | . . . Utility 2 | 2 . . Device 1 | 1 . . Storage 1 | 1 . . Processor . | . . . Hackware . | . . . Protection . | . . . Artifact . | . . . Weapon 3 | 2 . 1 Energy Gun 3 | 2 . 1 Energy Cannon . | . . . Ballistic Gun . | . . . Ballistic Cannon . | . . . Launcher . | . . . Special Weapon . | . . . Impact Weapon . | . . . Slashing Weapon . | . . . Piercing Weapon . | . . . Special Melee Weapon . | . . . Unidentified Prototypes . | . . . Parts Lost 4 | . . 4 Power 2 | . . 2 Propulsion . | . . . Utility . | . . . Weapon 2 | . . 2 Highest Loss Streak 4 | . . 4 To Critical Strikes . | . . . Average Backups 6 | 6 7 6 Power . | . 1 1 Propulsion 3 | 4 4 3 Utility . | . . 1 Weapon 1 | 1 1 1 Tool/Special . | . . . Unused Backups 5 | 1 2 2 Power . | . . . Propulsion 4 | 1 2 1 Utility 1 | . . 1 Weapon . | . . . Tool/Special . | . . . Average Slot Usage (%) 97 | . 100 95 Engine 12 | . 14 10 Treads 23 | . 28 19 Wheel 4 | . . 8 Device 14 | . 14 14 Storage 14 | . 14 14 Energy Gun 27 | . 28 26 Peak Build Rating 7 | 7 7 7 Average Rating 6 | 5 7 6 On Entrance 4 | . 7 7 Naked Turns . | . . . Heaviest Build 14 | 14 14 14 Greatest Support 40 | 40 40 40 Greatest Overweight (x) . | . . . Average Overweight (x) . | . . . Largest Inventory Capacity 8 | 8 8 8 Average Capacity 7 | 7 8 8 Most Carried 8 | 8 8 7 Average Carried 6 | 6 7 6 Final Capacity 8 | 8 8 8 Final Carried 7 | 7 7 5 Class Distribution -------------------- 100% | Mutant Dominant Class ---------------- Mutant | -10/Materials Mutant | -10/Mines Resources | -11 -10 -10 ----------- Run | Yrd Mat Min Matter Collected 290 | 270 . 20 Remotely . | . . . Salvage Created 267 | 150 6 111 Parts 25 | 12 4 9 Haulers Intercepted . | . . . Recyclers Shooed 1 | . 1 . Parts Field Recycled . | . . . Retrieved Matter . | . . . Parts Self-Destructed . | . . . Prevented . | . . . Kills | -11 -10 -10 ------- Run | Yrd Mat Min Combat Hostiles Destroyed 6 | . . 6 Guns 6 | . . 6 Classes Destroyed 6 | 2 1 3 Builder 1 | . 1 . Tunneler 3 | 3 . . Recycler 1 | 1 . . Swarmer 4 | . . 4 Grunt 1 | . . 1 Assembled 1 | . . 1 Best Kill Streak 3 | 3 1 3 Combat Bots Only 3 | . . 3 Max Kills in Single Turn 2 | 1 1 2 Gunslinging 1 | . . 1 Exploded . | . . . Melee . | . . . Uniques/NPCs Destroyed . | . . . Combat | -11 -10 -10 -------- Run | Yrd Mat Min Hostile Shots Fired 45 | . . 45 Missed 7 | . . 7 Hits 38 | . . 38 Melee 4 | . . 4 Projectile 34 | . . 34 AOE 7 | . . 7 Critical Strikes 2 | . . 2 Damage Taken 638 | . . 638 Core 261 | . . 261 Absorbed by Shields . | . . . Core Remaining (%) 100 | 100 . . Volleys Fired 31 | 9 1 21 Largest 2 | 2 2 2 Hottest 90 | 90 90 90 Shots Fired 56 | 18 2 36 Gun 56 | 18 2 36 Cannon . | . . . Launcher . | . . . Special . | . . . Kinetic . | . . . Thermal 56 | 18 2 36 Explosive . | . . . Electromagnetic . | . . . Robot Hit Streak 8 | 5 7 8 Robot Miss Streak 5 | 2 . 5 Penetration Max . | . . . Secondary Targets 1 | . . 1 Max Gunslinging Chain 1 | . . 1 Shots Hit Robots 36 | 11 2 23 Core Hits 18 | 5 2 11 Critical Kills . | . . . Critical Parts Destroyed . | . . . Critical Strikes 2 | 1 . 1 Burn 2 | 1 . 1 Melee Attacks . | . . . Impact . | . . . Slashing . | . . . Piercing . | . . . Sneak Attacks . | . . . Combat Hostiles . | . . . Follow-up Attacks . | . . . Damage Inflicted 428 | 128 32 268 Guns 417 | 128 24 265 Cannons . | . . . Explosions . | . . . Melee . | . . . Ramming 11 | . 8 3 Kinetic . | . . . Thermal 417 | 128 24 265 Explosive . | . . . Electromagnetic . | . . . Impact . | . . . Slashing . | . . . Piercing . | . . . Highest Corruption . | . . . Average Corruption . | . . . Corruption Purged . | . . . Corruption Blocked . | . . . Overload Shots . | . . . Overflow Damage . | . . . Projectiles . | . . . Explosions . | . . . Melee . | . . . Knockbacks 1 | . 1 . Impact 1 | . 1 . Kinetic . | . . . Secondary . | . . . Self-Inflicted Damage . | . . . Shots . | . . . Rammed 4 | . 2 2 Targets Rammed 5 | . 3 2 Kicked . | . . . Crushed 1 | . 1 . Highest Temperature 228 | 90 30 228 Average Temperature 64 | 31 18 86 Received Heat Transfer 69 | . . 69 Effects 2 | . . 2 Interference 2 | . . 2 Siege Activations . | . . . Martial Activations . | . . . Shielding Activations . | . . . Robots Disrupted . | . . . Combat Hostiles . | . . . Robots Corrupted . | . . . Combat Hostiles . | . . . Parts Fried . | . . . Impact Corruptions . | . . . Robots Melted . | . . . Combat Hostiles . | . . . Parts Melted 1 | . . 1 Heat Transferred 1252 | 421 62 769 Parts Sabotaged . | . . . Parts Stolen . | . . . Parts Stripped . | . . . Power Chain Reactions . | . . . Alert | -11 -10 -10 ------- Run | Yrd Mat Min Maximum Alert Level . | . . . Low Security (%) 100 | 100 100 100 Level 1 . | . . . Level 2 . | . . . Level 3 . | . . . Level 4 . | . . . Level 5 . | . . . High Security . | . . . Max Security . | . . . Peak Influence 93 | 10 5 93 Initial . | . . . Average 11 | . . 31 Influence Increases 168 | 20 5 143 Destroy 0b10 Robot/C 120 | . . 120 Destroy 0b10 Robot/NC 25 | 20 5 . Destroy Leader 20 | . . 20 Allied During Kill 3 | . . 3 Influence Decreases 168 | 20 5 143 Time Decay 118 | 20 5 93 Lost Part 30 | . . 30 Lost Ally 20 | . . 20 Squads Dispatched 1 | . 1 . Investigation . | . . . Extermination . | . . . Reinforcement 1 | . 1 . Assault . | . . . Garrison . | . . . Intercept . | . . . Searches Triggered . | . . . Construction Impeded . | . . . Haulers Reinforced . | . . . Active Scanning Responses . | . . . Cargo Convoy Interrupts . | . . . Stealth | -11 -10 -10 --------- Run | Yrd Mat Min Distress Signals 1 | . . 1 Communications Jammed . | . . . Distress Signals . | . . . Times Spotted 13 | . 1 12 Peak Tracking Total 12 | . 1 12 Tactical Retreats 1 | . . 1 Traps | -11 -10 -10 ------- Run | Yrd Mat Min Traps Triggered . | . . . Indirectly . | . . . Trap Hack Attempts . | . . . Triggered . | . . . Disarmed . | . . . Reprogrammed . | . . . Reused . | . . . Traps Extracted . | . . . Installed . | . . . Triggered . | . . . Machines | -11 -10 -10 ---------- Run | Yrd Mat Min Machines Disabled . | . . . Max in Single Turn . | . . . Machines Repaired . | . . . Machines Dismantled . | . . . Machines Sabotaged . | . . . Overloaded Fab Kills . | . . . Hacking | -11 -10 -10 --------- Run | Yrd Mat Min Machines Accessed 1 | . 1 . Terminals 1 | . 1 . Fabricators . | . . . Repair Stations . | . . . Recycling Units . | . . . Scanalyzers . | . . . Garrison Access . | . . . Total Hacks 1 | . 1 . Successful . | . . . Failed 1 | . 1 . Catastrophic . | . . . Database Lockouts . | . . . Manual 1 | . 1 . Terminals 1 | . 1 . Fabricators . | . . . Repair Stations . | . . . Recycling Units . | . . . Scanalyzers . | . . . Garrison Access . | . . . Terminal Hacks . | . . . Fabricator Hacks . | . . . Repair Station Hacks . | . . . Recycling Unit Hacks . | . . . Scanalyzer . | . . . Garrison Access Hacks . | . . . Unauthorized Hacks . | . . . Terminals . | . . . Fabricators . | . . . Repair Stations . | . . . Recycling Units . | . . . Scanalyzers . | . . . Garrison Access . | . . . Data Cores Recovered . | . . . Used . | . . . Hacking Detections . | . . . Full Trace Events . | . . . Feedback Events . | . . . Feedback Blocked . | . . . Robot Schematics Acquired . | . . . Robots Built . | . . . Authchips . | . . . Time . | . . . Total Robot Build Rating . | . . . Part Schematics Acquired . | . . . Parts Built . | . . . Authchips . | . . . Time . | . . . Total Part Build Rating . | . . . Parts Repaired . | . . . Time . | . . . Parts Recycled . | . . . Recycled Matter . | . . . Retrieved Matter . | . . . Retrieved Components . | . . . Parts Scanalyzed . | . . . Part Schematics Acquired . | . . . Parts Damaged . | . . . Bothacking | -11 -10 -10 ------------ Run | Yrd Mat Min Used RIF Installer . | . . . Robots Hacked . | . . . Non-combat . | . . . Combat . | . . . Robot Hacks Applied . | . . . Relay Couplers Released . | . . . Fabnet Peak Effective % . | . . . Robots Rewired . | . . . Allies Hacked . | . . . Hacks Repelled . | . . . Allies | -11 -10 -10 -------- Run | Yrd Mat Min Total Allies 1 | . . 1 Largest Group 1 | . . 1 Highest-Rated Group 28 | . . 28 Highest-Rated Ally 28 | . . 28 Total Orders . | . . . Ally Attacks 3 | . . 3 Total Damage 42 | . . 42 Kills 1 | . . 1 Allies Corrupted . | . . . Allies Melted . | . . . Intel | -11 -10 -10 ------- Run | Yrd Mat Min Active Infowar (turns) 368 | 25 224 119 Seismic 368 | 25 224 119 Robot Analysis Total . | . . . Derelict Logs Recovered . | . . . Drone Launches . | . . . Drone Recoveries . | . . . Exploration | -11 -10 -10 ------------- Run | Yrd Mat Min Turns Passed 702 | 229 224 249 Spaces Moved 298 | 119 56 123 Core 9 | 9 . . Treads 231 | 110 56 65 Legs . | . . . Wheels 58 | . . 58 Hover . | . . . Flight . | . . . Fastest Speed 50 | 50 160 100 Average Speed 145 | 151 160 131 Slowest Speed 160 | 160 160 160 Overloaded Moves . | . . . Propulsion Burnouts . | . . . Robots Hopped . | . . . Potential Cave-ins . | . . . Cave-ins Triggered . | . . . Exploration Rate (%) 18 | 8 11 37 Regions Visited 2 Branch Regions 1 Pre-discovered Areas 1 | . . 1 Known Exits Taken . | . . . Unknown Exits Taken 2 | 1 1 . Scrap Searched . | . . . Spaces Dug . | . . . Terrain Destroyed . | . . . Melee . | . . . Projectile . | . . . AOE . | . . . Terrain Rammed . | . . . Walls Destroyed . | . . . Machines Disabled . | . . . Actions | -11 -10 -10 --------- Run | Yrd Mat Min Total 509 | 150 188 171 Wait 146 | . 125 21 Move 296 | 118 55 123 Hop . | . . . Pick Up 17 | 15 2 . Fast Attach . | . . . Attach 9 | 7 . 2 Detach . | . . . Swap 2 | . . 2 Drop 3 | 1 2 . Fire 31 | 9 1 21 Melee . | . . . Ram . | . . . Kick . | . . . Crush 5 | . 3 2 Escape Stasis . | . . . Rewire . | . . . Trap . | . . . Miscellaneous . | . . . Route ------- -11/Scrapyard -10/Materials -10/Mines History --------- Turn | Location | Event 19 | -11/Scrapyard | Discovered new exit (range 14) 230 | -11/Scrapyard | Entered Materials 307 | -10/Materials | Build established: Mutant 423 | -10/Materials | Discovered new exit (range 16) 454 | -10/Materials | Entered Mines 502 | -10/Mines | Escorted by a lone wolf Derelict 522 | -10/Mines | Learned location of Storage (-8) 619 | -10/Mines | Assembled infested the area 675 | -10/Mines | Core integrity fell below 50% 683 | -10/Mines | Core integrity fell below 20% 703 | -10/Mines | Destroyed by D-53 Grenadier with Mini Grenade Launcher Last Messages --------------- 00570_ Switching to secondary target: S-10 Pest. 00570_ S-10 Pest destroyed. 00573_ Overheating: System interference. 00573_ Seismic Detector temporarily disabled. 00573_ Med. Laser temporarily disabled. 00594_ K-01 Serf collects debris. 00600_ Slammed into K-01 Serf. 00619_ ALERT: Infestation in the mines, dispatching Demolisher response squad. 00622_ as-53638 sneak attacks. 00622_ K-01 Serf destroyed. 00632_ Acquired 20 matter. 00646_ Ion Engine destroyed. 00660_ as-53638 destroyed. 00672_ Med. Laser destroyed. 00677_ T-07 Excavator is excavating. 00681_ The unstable cave ceiling collapses. 00681_ T-07 Excavator is excavating. 00682_ Sml. Laser destroyed. 00701_ Lgt. Ion Engine destroyed. Map ----- +----------------------------------------------------+ | ?## ##=####???????????????????????????????????? | | ??# ####%#??????????????????????????????????????? | | #?# #??#%#??????????????????????????????????????? | | ### #?##*####???????????????????????????????????? | | ## ###%= ##??????????????????????????????????? | | %%% ## #??????????????????????????????????? | | ##### #??????????????????????????????????? | | #???## #??????????????????????????????????? | | #????### ##??????????????????????????????????? | | ##??????## #???????????????????????????????????? | | ##????????# #???????????????????????????????????? | | ??????????#% #???????????????????????????????????? | | ??????????# #???????????????????????????????????? | | ??????????# #???????????????????????????????????? | | ?????????## #???????????????????????????????????? | | ????????## ##???????????????????????????????????? | | ??????### #????????????????????????????????????? | | ???#### ####????????????????????? ???????????? | | ??## #???????????####????? ???????????? | | #?# ### #??????##### ##?? #???????????? | | ## #???######## ## #???????????? | | # #????? #???????????? | | #??????? #????????????? | | ###?????## #?????????????? | | #?????# #??????????????? | | # # #???### @ #??????????????? | | ## #???# d ## #??????????????? | | # #???# ## ###????????????????????? | | ## #???# ## #?????????????????????? | | #### # ##### ## #?????????????????????? | | ???## ###### #????????????????????? | | ????# ########????## #???????????????????? | | ????#### ###????????????? #??????????????????? | | ???????# #??????????????? ?????????????????? | | ???????# #??????????????? ????????????????? | | ???????# #???????????????## ???????????????? | | ???????# #?????????????????# ??????????????? | | ???????# ??????????????????# ??????????????? | | ???????####??????????????????? ????????????????? | | ?????????????????????????????????????????????????? | | ?????????????????????????????????????????????????? | | ?????????????????????????????????????????????????? | | ?????????????????????????????????????????????????? | | ?????????????????????????????????????????????????? | | | | | | | | | | | | | +----------------------------------------------------+ Best States ------------- Heat Dissipation 25 Energy Generation 10 Energy Capacity 250 Matter Stores 300 Matter Capacity 300 Sight Range 16 Terrain Scan Density 10 Evasion (%) 50 Recoil Reduction 2 Item Schematics ----------------- None Robot Schematics ------------------ None Fabricated ------------ Nothing Repaired ---------- Nothing Alien Tech Used ----------------- None Achievements -------------- None Challenges ------------ None Game ------ Seed TowerThermicKinecellerator Manual? 0 Play Time 00:05:58 Cumulative 35.9 hours Start 2025.07.23 @ 00:58:07 End 2025.07.23 @ 01:02:09 Sessions 1 Manual Loads 0 Difficulty Rogue Special Mode None Game No. 93 Rogue 93 Adventurer 0 Explorer 0 Win Type - Total 0 Types 0/0/0/0/0/0/0/0/0/0 Lore% 34 Gallery% 33 Achievement% 26 Wizard Run 0 Options --------- Layout 1 ASCII 0 Keyboard 0 Movement Mouse Keybinds 0 Fullscreen 1 Font 24/Smallcaps Map View 50x35 Zoom Use 0% Tactical HUD 1 Map Filters NONE Filters NONE Steam 1 RUN: 5d1b76ae-777c-4c9b-8369-a6aa90532cba